bitfinex/quotes_ETHUSD_20230404
["timestamp","ask_amount","ask_price","bid_price","bid_amount"]
[1680583092454,1.228,1804.7,1804.3,6.78008979]
[1680583092826,1.228,1804.7,1804.3,6.55839979]
[1680583093360,1.228,1804.7,1804.3,6.78007979]
[1680583093562,1.228,1804.7,1804.3,6.55839979]
[1680583093761,1.228,1804.7,1804.3,6.78008979]
[1680583093947,1.228,1804.7,1804.3,5.61851299]
[1680583094522,1.228,1804.7,1804.3,6.55839979]
[1680583095050,1.228,1804.7,1804.3,6.78008979]
[1680583095251,0.44802244,1804.6,1804.3,6.78008979]
[1680583096263,5.49798979,1804.8,1804.3,6.78008979]
[1680583096567,5.49798979,1804.8,1804.3,6.55839979]
[1680583097066,5.49798979,1804.8,1804.3,6.55359289]
[1680583097277,5.93772601,1804.8,1804.3,5.39201609]
[1680583097563,0.8154126,1804.7,1804.3,5.39201609]
[1680583097765,0.5937726,1804.7,1804.3,5.39201609]
[1680583097968,5.49447601,1804.8,1804.3,5.39201609]
[1680583099369,4.23361921,1804.8,1804.3,5.39201609]
[1680583099541,4.23161921,1804.8,1804.3,5.39201609]
[1680583099726,4.67487921,1804.8,1804.3,5.39201609]
[1680583101653,7.99487921,1804.8,1804.3,0.87921609]
[1680583101833,0.79948792,1804.7,1804.3,0.87121609]
[1680583102036,2.24713792,1804.7,1804.3,0.87121609]
[1680583102238,2.24713792,1804.7,1804.3,0.87521609]
[1680583102938,2.24713792,1804.7,1804.3,0.87321609]
[1680583103140,2.02548792,1804.7,1804.3,1.09489609]
[1680583103354,2.02548792,1804.7,1804.3,0.87721609]
[1680583103355,0.20254879,1804.6,1804.3,0.87721609]
[1680583104347,2.24712792,1804.7,1804.3,0.87721609]
[1680583104572,2.24712792,1804.7,1804.3,0.87321609]
[1680583105671,2.24712792,1804.7,1804.3,0.87721609]
[1680583106275,2.76602218,1804.6,1804.3,0.86768174]
[1680583106445,0.27660222,1804.5,1804.3,0.86768174]
[1680583106652,0.27660222,1804.5,1804.3,1.08937174]
[1680583106849,0.27660222,1804.5,1804.3,0.86768174]
[1680583107179,1.23579051,1804.7,1804.3,1.08937174]
[1680583107338,3.99202218,1804.7,1804.3,1.08937174]
[1680583107942,7.31202218,1804.7,1804.3,1.08937174]
[1680583108255,7.31402218,1804.7,1804.3,1.09137174]
[1680583108904,6.08602218,1804.5,1804.3,0.86768174]
[1680583109063,4.549,1804.4,1804.1,0.006]
[1680583109264,4.549,1804.4,1804.0,0.106]
[1680583109265,1.225,1804.3,1804.0,0.106]
[1680583109758,1.24348081,1804.3,1804.0,0.106]
[1680583110144,0.42979418,1804.2,1804.0,0.106]
[1680583110468,0.42979418,1804.2,1804.0,0.1]
[1680583111577,6.68314386,1804.2,1804.0,0.1]
[1680583111777,3.36514386,1804.2,1804.0,0.1]
[1680583111978,3.36314386,1804.2,1804.0,0.1]
[1680583112181,0.42979418,1804.2,1804.0,0.32172]
[1680583112382,0.42979418,1804.2,1804.0,0.1]
[1680583113085,6.08602218,1804.1,1804.0,0.1]
[1680583113248,0.002,1804.1,1804.0,0.1]
[1680583113453,3.74979418,1804.2,1804.0,0.1]
[1680583113650,0.42979418,1804.2,1804.0,0.1]
[1680583113886,0.42979418,1804.2,1804.0,0.32172]
[1680583114292,0.42979418,1804.2,1804.0,0.1]
[1680583118791,0.42979418,1804.2,1804.0,0.32172]
[1680583118997,0.42979418,1804.2,1804.0,0.1]
[1680583119192,0.42979418,1804.2,1804.0,0.32172]
[1680583119573,0.42979418,1804.2,1804.0,0.1]
[1680583119780,0.42979418,1804.2,1804.0,0.32172]
[1680583120199,0.42979418,1804.2,1804.0,1.19128718]
[1680583120498,0.42979418,1804.2,1804.0,0.97156718]
[1680583120664,0.42979418,1804.2,1804.0,0.96956718]
[1680583121284,0.42979418,1804.2,1804.0,1.19400742]
[1680583121699,0.42979418,1804.2,1804.0,1.41572742]
[1680583122098,0.42979418,1804.2,1804.0,1.19400742]
[1680583124799,0.42979418,1804.2,1804.0,1.41572742]
[1680583124999,0.42979418,1804.2,1804.0,1.19400742]
[1680583125676,0.42979418,1804.2,1804.1,0.12420816]
[1680583125880,0.42979418,1804.2,1804.1,1.65891534]
[1680583126085,0.42979418,1804.2,1804.1,2.82049214]
[1680583126282,15.0362,1804.8,1804.1,1.95692496]
[1680583126482,15.0362,1804.8,1804.2,0.86984589]
[1680583126677,4.8807,1804.8,1804.3,0.75204459]
[1680583126902,0.14944958,1804.9,1804.3,0.75685149]
[1680583127202,0.36623909,1804.7,1804.3,5.51835149]
[1680583127416,0.36623909,1804.7,1804.3,5.52035149]
[1680583127609,0.36623909,1804.7,1804.4,0.55203515]
[1680583127825,0.36623909,1804.7,1804.4,0.77370515]
[1680583128026,0.36623909,1804.7,1804.4,0.55203515]
[1680583128187,3.0,1804.8,1804.3,4.86129149]
[1680583128387,3.0,1804.8,1804.3,5.08097149]
[1680583128619,3.0,1804.8,1804.3,5.08297149]
[1680583129315,5.98765218,1804.8,1804.3,4.86129149]
[1680583129488,5.98965218,1804.8,1804.3,4.7723069]
[1680583129688,6.08602218,1804.7,1804.3,0.006]
[1680583129890,0.01848081,1804.6,1804.1,11.97353269]
[1680583130090,2.76602218,1804.5,1804.1,2.26113269]
[1680583130328,2.76602218,1804.5,1804.1,2.70256269]
[1680583132487,2.76602218,1804.5,1804.2,0.86984589]
[1680583132687,3.37667248,1804.5,1804.3,0.22169]
[1680583135203,6.69667248,1804.5,1804.2,0.87584589]
[1680583135404,6.69667248,1804.5,1804.1,0.006]
[1680583135405,13.74567248,1804.5,1804.1,0.006]
[1680583135604,3.98966725,1804.4,1804.0,2.35914269]
[1680583135807,6.75568943,1804.4,1804.0,2.80259269]
[1680583136004,6.75768943,1804.4,1804.0,2.35914269]
[1680583136210,0.67576894,1804.3,1804.1,0.86984589]
[1680583136410,0.67576894,1804.3,1804.0,2.35914269]
[1680583137711,3.43768943,1804.4,1804.0,2.80259269]
[1680583137915,3.43568943,1804.4,1804.1,0.86984589]
[1680583138238,0.66966725,1804.4,1804.2,0.2217]
[1680583138396,0.66966725,1804.4,1804.1,1.53497589]
[1680583138596,3.32,1804.5,1804.1,1.53497589]
[1680583138892,6.08602218,1804.5,1804.1,1.53497589]
[1680583139096,6.08802218,1804.5,1804.1,1.53697589]
[1680583139692,0.002,1804.5,1804.1,1.53697589]
[1680583139892,3.01848081,1804.6,1804.2,0.15369759]
[1680583140131,3.01848081,1804.6,1804.2,0.4434]
[1680583140331,3.01848081,1804.6,1804.2,1.53493589]
[1680583140332,0.35846611,1804.4,1804.2,1.53493589]
[1680583141198,0.01848081,1804.6,1804.2,1.53493589]
[1680583142304,0.01848081,1804.6,1804.2,1.09153589]
[1680583143202,0.01848081,1804.6,1804.2,1.53493589]
[1680583143529,0.01848081,1804.6,1804.3,0.15349359]
[1680583143840,0.01848081,1804.6,1804.3,0.22168]
[1680583144334,0.01848081,1804.6,1804.2,1.09153589]
[1680583144700,0.01848081,1804.6,1804.2,1.53493589]
[1680583148310,0.01848081,1804.6,1804.2,1.09153589]
[1680583150305,0.01848081,1804.6,1804.2,1.53493589]
[1680583151135,0.01848081,1804.6,1804.2,1.80518716]
[1680583151304,0.01848081,1804.6,1804.2,2.96676396]
[1680583151505,0.01848081,1804.6,1804.2,1.54093589]
[1680583151707,0.01848081,1804.6,1804.2,1.09153589]
[1680583152202,0.01848081,1804.6,1804.2,2.25311269]
[1680583153218,0.01848081,1804.6,1804.2,2.25511269]
[1680583153849,0.01848081,1804.6,1804.3,0.86984589]
[1680583154050,1.91964889,1804.6,1804.3,0.86984589]
[1680583154621,1.91964889,1804.6,1804.3,1.09153589]
[1680583154809,1.91964889,1804.6,1804.3,0.86984589]
[1680583155011,1.91964889,1804.6,1804.3,1.09153589]
[1680583155211,0.36384449,1804.5,1804.3,0.86984589]
[1680583155411,0.36384449,1804.5,1804.3,1.09153589]
[1680583156315,0.36384449,1804.5,1804.3,0.86984589]
[1680583156516,0.59219383,1804.5,1804.3,0.86984589]
[1680583156841,0.59219383,1804.5,1804.3,1.09152589]
[1680583157010,0.36384449,1804.5,1804.3,1.09152589]
[1680583159739,0.36384449,1804.5,1804.3,1.53490589]
[1680583160937,0.36384449,1804.5,1804.3,1.09152589]
[1680583161117,0.36384449,1804.5,1804.3,0.22168]
[1680583161317,0.36384449,1804.5,1804.2,1.31324589]
[1680583161515,0.36384449,1804.5,1804.2,1.53693589]
[1680583161754,0.36384449,1804.5,1804.2,1.54093589]
[1680583161923,0.36384449,1804.5,1804.2,1.53493589]
[1680583162127,0.36384449,1804.5,1804.2,2.70251269]
[1680583162524,0.36384449,1804.5,1804.2,2.25911269]
[1680583162730,0.36384449,1804.5,1804.2,2.25311269]
[1680583162933,0.36384449,1804.5,1804.2,2.03742269]
[1680583163236,0.36384449,1804.5,1804.2,2.25312269]
[1680583163438,0.36384449,1804.5,1804.2,3.11864624]
[1680583163821,0.36384449,1804.5,1804.4,0.22168]
[1680583166550,0.36384449,1804.5,1804.3,1.53490589]
[1680583167746,0.36384449,1804.5,1804.3,2.69648269]
[1680583167940,0.36384449,1804.5,1804.4,0.86984589]
[1680583168154,0.36384449,1804.5,1804.4,1.53488589]
[1680583168870,0.36384449,1804.5,1804.4,1.09152589]
[1680583169179,0.36176677,1804.5,1804.4,1.09152589]
[1680583171272,0.36176677,1804.5,1804.4,1.36117416]
[1680583172876,0.36176677,1804.5,1804.4,2.91453416]
[1680583173075,0.36176677,1804.5,1804.4,4.07611096]
[1680583173376,3.00779051,1804.9,1804.4,3.20626507]
[1680583173580,0.00779051,1804.9,1804.5,0.87170759]
[1680583173791,18.0819933,1805.0,1804.6,0.22165]
[1680583174376,0.34804414,1804.8,1804.5,1.39015486]
[1680583174677,0.34804414,1804.8,1804.5,1.09335759]
[1680583174877,0.34804414,1804.8,1804.5,0.87170759]
[1680583175384,18.3036033,1805.0,1804.5,0.87170759]
[1680583175559,21.64821536,1805.0,1804.4,0.87170759]
[1680583175881,2.38644154,1804.9,1804.4,1.09337759]
[1680583176247,2.16482154,1804.9,1804.4,1.09337759]
[1680583177767,2.38643154,1804.9,1804.4,1.09337759]
[1680583178147,8.47246372,1804.9,1804.4,1.09337759]
[1680583178346,8.47246372,1804.9,1804.4,1.53673759]
[1680583178347,0.84724637,1804.8,1804.4,1.53673759]
[1680583179285,0.84724637,1804.8,1804.4,1.09337759]
[1680583182471,0.84724637,1804.8,1804.4,1.53673759]
[1680583182666,3.32979051,1804.9,1804.4,1.53673759]
[1680583182864,3.32,1804.9,1804.4,1.53673759]
[1680583183786,6.08602218,1804.9,1804.4,1.09337759]
[1680583184003,6.09581269,1804.9,1804.4,1.09337759]
[1680583184568,6.09581269,1804.9,1804.4,1.53673759]
[1680583185182,0.3865632,1804.8,1804.4,1.53673759]
[1680583185384,1.03480079,1804.8,1804.4,1.53673759]
[1680583185587,1.03480079,1804.8,1804.4,0.66503]
[1680583189192,1.03115777,1804.8,1804.4,0.22767]
[1680583189392,1.03115777,1804.8,1804.4,0.22567]
[1680583190800,0.38292018,1804.8,1804.4,0.22767]
[1680583191397,6.10650299,1804.9,1804.4,0.22567]
[1680583191572,6.10650299,1804.9,1804.4,0.22367]
[1680583191774,6.08602218,1804.8,1804.4,0.002]
[1680583191986,6.08602218,1804.8,1804.4,0.006]
[1680583191987,6.78102218,1804.8,1804.4,0.006]
[1680583192186,1.0404434,1804.7,1804.4,0.006]
[1680583192823,1.2620834,1804.7,1804.4,0.006]
[1680583193103,1.84475396,1804.7,1804.4,0.006]
[1680583193413,1.84475396,1804.7,1804.4,0.002]
[1680583193906,1.84475396,1804.7,1804.3,4.6986]
[1680583194105,0.693,1804.6,1804.3,4.6986]
[1680583194505,0.8774754,1804.6,1804.3,0.006]
[1680583195005,0.693,1804.6,1804.3,0.006]
[1680583196874,0.91465,1804.6,1804.3,0.006]
[1680583197080,0.92244051,1804.6,1804.1,7.06156217]
[1680583197301,0.42989269,1804.5,1804.1,7.06156217]
[1680583197502,0.42989269,1804.5,1804.1,7.28327217]
[1680583198200,0.4376832,1804.5,1804.1,7.28327217]
[1680583198387,0.42989269,1804.5,1804.1,7.28327217]
[1680583199174,0.56512601,1804.5,1804.1,7.28327217]
[1680583199375,0.687,1804.3,1804.1,0.002]
[1680583199576,0.687,1804.3,1804.0,1.2615768]
[1680583199577,0.2217,1804.2,1804.0,1.2615768]
[1680583199788,0.00779051,1804.2,1804.0,0.1]
[1680583199988,0.70804178,1804.2,1804.0,0.1]
[1680583200192,0.42848536,1804.1,1804.0,0.1]
[1680583201206,0.70804178,1804.2,1804.0,0.1]
[1680583201508,3.69576396,1804.2,1804.0,0.1]
[1680583201707,0.3695764,1804.1,1804.0,0.1]
[1680583201901,0.37736691,1804.1,1804.0,0.1]
[1680583203087,3.14338909,1804.1,1804.0,0.1]
[1680583206133,3.3835799,1804.1,1804.0,0.1]
[1680583206490,3.1618699,1804.1,1804.0,0.1]
[1680583207801,3.3835799,1804.1,1804.0,0.1]
[1680583208130,0.37736691,1804.1,1804.0,0.1]
[1680583208324,0.00779051,1804.1,1804.0,0.1]
[1680583209223,0.00779051,1804.2,1804.0,0.1]
[1680583209423,2.77381269,1804.2,1804.0,0.1]
[1680583209822,2.99552269,1804.2,1804.0,0.1]
[1680583210027,2.77381269,1804.2,1804.0,0.1]
[1680583210627,2.99551269,1804.2,1804.0,0.1]
[1680583210792,2.77381269,1804.2,1804.0,0.1]
[1680583210986,2.99551269,1804.2,1804.0,0.1]
[1680583211199,2.77381269,1804.2,1804.0,0.1]
[1680583212404,0.00779051,1804.2,1804.0,0.1]
[1680583212604,0.00779051,1804.3,1804.0,0.32172]
[1680583212824,0.00779051,1804.3,1804.0,0.76517]
[1680583213198,0.00779051,1804.3,1804.1,0.076517]
[1680583213527,0.00779051,1804.4,1804.1,0.076517]
[1680583213742,0.00779051,1804.4,1804.1,0.741657]
[1680583214086,0.00779051,1804.5,1804.1,0.741657]
[1680583214404,0.00779051,1804.6,1804.2,0.0741657]
[1680583214605,0.00779051,1804.6,1804.3,0.22169]
[1680583214927,0.00779051,1804.6,1804.3,0.66507]
[1680583215125,0.00779051,1804.7,1804.3,0.66507]
[1680583215334,0.00779051,1804.7,1804.3,0.87177357]
[1680583215335,0.52945112,1804.5,1804.3,0.87177357]
[1680583215531,0.52945112,1804.5,1804.3,1.31515357]
[1680583216034,0.52945112,1804.5,1804.4,1.11]
[1680583216207,0.00779051,1804.7,1804.4,2.01803605]
[1680583216392,0.00779051,1804.7,1804.4,0.90803605]
[1680583219007,0.00779051,1804.8,1804.4,0.90803605]
[1680583219535,0.00779051,1804.8,1804.4,2.01803605]
[1680583220423,3.002,1805.0,1804.4,2.02203605]
[1680583220629,10.04512004,1805.1,1804.4,2.01803605]
[1680583220630,13.37291055,1805.1,1804.4,2.01803605]
[1680583220927,13.36470739,1805.1,1804.4,2.01803605]
[1680583221241,13.36470739,1805.1,1804.4,11.56443605]
[1680583221242,18.54230739,1805.1,1804.4,11.56443605]
[1680583221408,18.54230739,1805.1,1804.4,11.57243605]
[1680583222620,18.54230739,1805.1,1804.4,11.32944]
[1680583223623,18.54230739,1805.1,1804.5,5.821]
[1680583223624,0.55470739,1805.1,1804.5,5.821]
[1680583223942,0.09107188,1805.2,1804.6,0.66973609]
[1680583224231,0.10955269,1805.2,1804.6,6.49073609]
[1680583224440,0.10955269,1805.2,1804.6,6.49273609]
[1680583225035,0.10955269,1805.2,1804.6,0.67173609]
[1680583225234,0.10955269,1805.2,1804.6,0.66973609]
[1680583225422,0.33113269,1805.2,1804.6,0.66973609]
[1680583225821,0.10955269,1805.2,1804.6,0.66973609]
[1680583226051,0.10955269,1805.2,1804.6,1.77973609]
[1680583226905,0.10955269,1805.2,1804.7,6.931]
[1680583227145,3.10955269,1805.2,1804.8,0.22162]
[1680583227345,0.10955269,1805.2,1804.8,0.22162]
[1680583227545,0.10955269,1805.2,1804.7,0.22363]
[1680583227718,0.10955269,1805.2,1804.7,0.22163]
[1680583227915,0.10955269,1805.2,1804.7,2.56063]
[1680583227916,0.33113269,1805.2,1804.7,2.56063]
[1680583228143,3.10955269,1805.2,1804.6,1.118]
[1680583228316,0.66477,1805.1,1804.6,1.11]
[1680583228518,0.66477,1805.1,1804.5,6.09336]
[1680583228519,3.98477,1805.1,1804.5,6.09336]
[1680583228839,3.98477,1805.1,1804.6,1.11]
[1680583229054,3.54159,1805.1,1804.5,6.09336]
[1680583230344,0.4886861,1805.0,1804.5,6.09336]
[1680583230524,0.4886861,1805.0,1804.5,8.145001]
[1680583233046,0.4886861,1805.0,1804.5,6.09336]
[1680583233247,0.4886861,1805.0,1804.5,4.7617]
[1680583233248,4.0302861,1805.0,1804.5,4.7617]
[1680583233444,4.0302861,1805.0,1804.5,4.7597]
[1680583233749,4.0302861,1805.0,1804.5,0.22766]
[1680583233947,0.40302861,1804.9,1804.5,0.22166]
[1680583239623,0.40302861,1804.9,1804.4,10.21942]
[1680583240043,0.40302861,1804.9,1804.4,9.77606]
[1680583242204,0.40302861,1804.9,1804.4,11.92065469]
[1680583242471,2.98765218,1804.8,1804.4,0.008]
[1680583242648,2.98765218,1804.8,1804.3,0.0048069]
[1680583243373,6.30765218,1804.8,1804.3,0.0048069]
[1680583243571,6.30965218,1804.8,1804.3,0.0048069]
[1680583243737,6.30965218,1804.8,1804.3,0.2264969]
[1680583243934,0.63096522,1804.7,1804.3,0.2264969]
[1680583244270,3.3969874,1804.7,1804.3,0.2264969]
[1680583245040,3.3969874,1804.7,1804.3,0.0048069]
[1680583245277,0.45893531,1804.6,1804.3,0.2264869]
[1680583246249,3.3969874,1804.7,1804.3,0.2264869]
[1680583246453,0.33969874,1804.6,1804.3,0.2264869]
[1680583246800,0.33969874,1804.6,1804.3,0.0048069]
[1680583247137,0.33969874,1804.6,1804.3,0.2264969]
[1680583247577,0.33969874,1804.6,1804.3,0.0048069]
[1680583249987,6.42572092,1804.6,1804.3,0.2264969]
[1680583250195,6.42772092,1804.6,1804.3,0.2264969]
[1680583250859,6.42772092,1804.6,1804.3,0.6698769]
[1680583251775,3.10772092,1804.6,1804.3,0.6698769]
[1680583251964,10.40406522,1804.7,1804.3,0.6698769]
[1680583252293,13.1700874,1804.7,1804.3,0.6698769]
[1680583253305,12.53912218,1804.7,1804.3,0.6698769]
[1680583254448,12.53912218,1804.7,1804.2,0.22769]
[1680583255984,12.53912218,1804.7,1804.2,0.67109]
[1680583259399,9.7731,1804.7,1804.2,1.78109]
[1680583259600,9.7731,1804.7,1804.2,1.2040381]
[1680583260406,0.45686486,1804.6,1804.2,1.2040381]
[1680583260907,0.45686486,1804.6,1804.3,1.11]
[1680583261047,0.45686486,1804.6,1804.4,0.22168]
[1680583261252,9.7731,1804.7,1804.4,0.22168]
[1680583262769,11.08425808,1804.7,1804.3,0.44937]
[1680583262988,11.08425808,1804.7,1804.3,0.22168]
[1680583262989,9.7731,1804.7,1804.3,0.22168]
[1680583263191,9.7731,1804.7,1804.3,0.22368]
[1680583264673,9.7731,1804.7,1804.3,0.22168]
[1680583270711,9.7731,1804.7,1804.3,0.22368]
[1680583271345,9.7731,1804.7,1804.3,0.22168]
[1680583271546,11.20715808,1804.7,1804.3,0.22168]
[1680583275232,0.46416935,1804.6,1804.3,0.22168]
[1680583276195,11.20715808,1804.7,1804.3,0.22368]
[1680583276532,11.20715808,1804.7,1804.3,0.22168]
[1680583278539,6.08602218,1804.6,1804.2,2.62430647]
[1680583278835,7.20873799,1804.6,1804.3,0.22168]
[1680583279054,7.20873799,1804.6,1804.3,0.006]
[1680583279265,0.59437475,1804.5,1804.2,1.17238397]
[1680583279401,0.59437475,1804.5,1804.2,0.006]
[1680583279600,6.90205693,1804.5,1804.1,1.1675768]
[1680583279802,6.90405693,1804.5,1804.1,1.1675768]
[1680583279999,6.90405693,1804.5,1804.1,1.3892868]
[1680583280000,6.68239693,1804.5,1804.1,1.3892868]
[1680583280200,0.69040569,1804.4,1804.1,1.3892868]
[1680583280603,0.69040569,1804.4,1804.1,1.1675768]
[1680583281028,0.69040569,1804.4,1804.1,1.3892868]
[1680583282230,0.69040569,1804.4,1804.1,1.1675768]
[1680583284211,3.45642787,1804.4,1804.1,1.1675768]
[1680583284545,3.11166497,1804.3,1804.1,1.3892868]
[1680583286071,3.11166497,1804.3,1804.1,1.1675768]
[1680583287450,3.11166497,1804.3,1804.1,1.1635768]
[1680583288134,3.11166497,1804.3,1804.1,1.1655768]
[1680583288378,0.30823445,1804.2,1804.0,0.1]
[1680583290271,0.4624761,1804.1,1804.0,0.1]
[1680583291230,0.30823445,1804.2,1804.0,0.1]
[1680583295476,7.98426497,1804.3,1804.0,0.1]
[1680583295677,0.693,1804.2,1804.0,0.1]
[1680583295882,7.00073218,1804.2,1804.0,0.1]
[1680583296041,7.00273218,1804.2,1804.0,0.1]
[1680583296245,11.90702218,1804.1,1804.0,0.1]
[1680583296462,19.1655354,1804.1,1804.0,0.1]
[1680583296663,20.70660952,1804.1,1803.7,0.30410812]
[1680583296925,3.32,1803.7,1803.3,0.1]
[1680583297078,2.98779218,1803.6,1803.3,0.1]
[1680583297237,2.76602218,1803.6,1803.3,0.1]
[1680583297681,17.7781,1803.7,1803.3,0.1]
[1680583297901,20.54412218,1803.7,1803.3,0.1]
[1680583298049,21.23452787,1803.7,1803.3,0.1]
[1680583298577,0.002,1803.7,1803.3,0.1]
[1680583298777,18.07335,1803.9,1803.4,0.1048093]
[1680583299083,15.73752534,1803.9,1803.4,0.3266093]
[1680583299252,15.73752534,1803.9,1803.4,0.41363223]
[1680583299660,15.72932218,1803.9,1803.4,0.41363223]
[1680583299863,15.95106218,1803.9,1803.4,0.41363223]
[1680583300960,15.95106218,1803.9,1803.4,0.19183223]
[1680583301276,15.95106218,1803.9,1803.4,0.41363223]
[1680583301991,15.72932218,1803.9,1803.4,0.41363223]
[1680583302149,15.95106218,1803.9,1803.4,0.41363223]
[1680583302348,15.72932218,1803.9,1803.4,0.41363223]
[1680583303247,15.95106218,1803.9,1803.4,0.41363223]
[1680583303474,15.72932218,1803.9,1803.4,0.41363223]
[1680583304244,3.32,1803.7,1803.4,0.1048093]
[1680583304493,3.322,1803.8,1803.4,0.7654]
[1680583304780,6.08602218,1803.8,1803.4,0.7654]
[1680583304989,6.08802218,1803.8,1803.4,0.85194]
[1680583305275,0.44816532,1803.7,1803.4,0.85194]
[1680583306484,0.44816532,1803.7,1803.4,0.40834]
[1680583306684,0.44816532,1803.7,1803.4,0.3218]
[1680583307083,0.44816532,1803.7,1803.4,0.1]
[1680583307084,6.08602218,1803.6,1803.4,0.1]
[1680583307270,6.08802218,1803.6,1803.4,0.1]
[1680583307469,2.76802218,1803.6,1803.5,0.22179]
[1680583307644,2.76802218,1803.6,1803.4,0.1]
[1680583307645,2.76602218,1803.6,1803.4,0.1]
[1680583307850,2.76602218,1803.6,1803.5,0.22179]
[1680583308051,2.76602218,1803.6,1803.4,0.3218]
[1680583308248,8.70636532,1803.7,1803.4,0.1]
[1680583308454,3.77016532,1803.7,1803.4,0.1]
[1680583308694,3.76816532,1803.7,1803.4,0.1]
[1680583309756,0.44816532,1803.7,1803.4,0.1]
[1680583311267,0.44816532,1803.7,1803.4,0.3218]
[1680583312156,0.44816532,1803.7,1803.4,0.408342]
[1680583313292,0.44816532,1803.7,1803.4,0.3218]
[1680583313491,0.44816532,1803.7,1803.4,0.1]
[1680583313794,0.44816532,1803.7,1803.4,0.3218]
[1680583314009,0.44816532,1803.7,1803.4,0.7654]
[1680583314368,0.44816532,1803.7,1803.4,0.3218]
[1680583315294,3.32,1803.9,1803.4,0.519342]
[1680583315587,3.32,1803.9,1803.4,0.962942]
[1680583316898,3.32,1803.9,1803.4,0.519342]
[1680583317772,3.32,1803.9,1803.4,0.5241513]
[1680583318570,3.32,1803.9,1803.4,0.9677513]
[1680583318772,3.32,1803.9,1803.5,0.09677513]
[1680583318992,3.32,1803.9,1803.6,0.22177]
[1680583320405,0.52075821,1803.8,1803.6,0.22177]
[1680583320719,0.51865146,1803.8,1803.6,0.67012877]
[1680583321210,0.52040751,1803.7,1803.6,0.22657877]
[1680583321414,0.52040751,1803.7,1803.6,0.67012877]
[1680583321571,0.52040751,1803.7,1803.6,0.85781916]
[1680583323717,0.52040751,1803.7,1803.5,0.006]
[1680583323919,0.52040751,1803.7,1803.4,6.316232]
[1680583324086,0.52040751,1803.7,1803.4,6.318232]
[1680583324430,0.52040751,1803.7,1803.4,6.761832]
[1680583327287,0.52040751,1803.7,1803.4,6.7666413]
[1680583327629,0.52040751,1803.7,1803.5,0.67666413]
[1680583327802,0.52040751,1803.7,1803.5,0.90443413]
[1680583330237,0.52040751,1803.7,1803.5,0.68266413]
[1680583330426,0.52040751,1803.7,1803.4,0.9737413]
[1680583334133,0.52040751,1803.7,1803.4,2.1353181]
[1680583334506,0.52040751,1803.7,1803.4,1.6917181]
[1680583335640,0.52040751,1803.7,1803.4,1.4941761]
[1680583336603,0.52040751,1803.7,1803.4,0.3325993]
[1680583337135,6.82819969,1803.7,1803.4,0.104]
[1680583337337,6.83019969,1803.7,1803.4,0.1]
[1680583337510,6.60842969,1803.7,1803.4,0.1]
[1680583337717,0.66084297,1803.6,1803.4,0.1]
[1680583337913,0.88261297,1803.6,1803.4,0.1]
[1680583338125,2.10761297,1803.6,1803.4,0.1]
[1680583338340,0.4856584,1803.5,1803.4,0.1]
[1680583338536,0.2356584,1803.5,1803.4,0.1]
[1680583339313,0.47272128,1803.5,1803.4,0.1]
[1680583340606,0.7085777,1803.5,1803.4,0.1]
[1680583342422,0.47272128,1803.5,1803.4,0.1]
[1680583344221,14.76434081,1803.7,1803.4,0.1]
[1680583344411,14.54258081,1803.7,1803.4,0.1]
[1680583344609,14.54837132,1803.7,1803.4,0.1]
[1680583344847,11.22258081,1803.7,1803.4,0.1]
[1680583345773,9.99258081,1803.7,1803.4,0.1]
[1680583346329,0.48618615,1803.6,1803.4,0.1]
[1680583348367,15.78435462,1803.8,1803.4,0.1]
[1680583348577,4.34445764,1803.7,1803.4,0.1]
[1680583349067,19.32611462,1803.8,1803.4,0.1]
[1680583350301,0.48688238,1803.7,1803.4,0.1]
[1680583350441,0.70864238,1803.7,1803.4,0.1]
[1680583350743,3.25290456,1803.7,1803.4,0.1]
[1680583350947,2.3906083,1803.7,1803.4,0.1]
[1680583351280,5.37839048,1803.7,1803.4,0.1]
[1680583351573,8.70859364,1803.7,1803.4,0.1]
[1680583351870,9.92539048,1803.7,1803.4,0.1]
[1680583352674,10.36892048,1803.7,1803.4,0.1]
[1680583352872,1.03689205,1803.6,1803.4,0.1]
[1680583353050,1.25867205,1803.6,1803.4,0.1]
[1680583353262,4.02469423,1803.6,1803.4,0.1]
[1680583354074,3.92469423,1803.6,1803.4,0.1]
[1680583354384,3.70291423,1803.6,1803.4,0.1]
[1680583354583,2.76602218,1803.6,1803.4,0.1]
[1680583356392,6.08602218,1803.6,1803.4,0.1]
[1680583356591,6.08802218,1803.6,1803.4,0.1]
[1680583361366,6.08602218,1803.5,1803.4,0.1]
[1680583361565,6.08802218,1803.5,1803.4,0.1]
[1680583362177,6.78202218,1803.5,1803.4,0.1]
[1680583362503,8.1333014,1803.5,1803.4,0.1]
[1680583365423,8.57435195,1803.5,1803.4,0.1]
[1680583370787,0.44305055,1803.5,1803.4,0.1]
[1680583371028,0.44105055,1803.5,1803.4,0.1]
[1680583371227,0.44105055,1803.5,1803.4,0.1048093]
[1680583371422,14.17585146,1803.8,1803.4,0.1048093]
[1680583371627,17.16362364,1803.8,1803.4,0.1048093]
[1680583371926,16.94187364,1803.8,1803.4,0.1048093]
[1680583372369,17.16362364,1803.8,1803.4,0.1048093]
[1680583372769,6.60667364,1803.8,1803.4,0.1048093]
[1680583372943,6.60667364,1803.8,1803.4,0.7702093]
[1680583372944,0.52065146,1803.8,1803.4,0.7702093]
[1680583373138,0.51865146,1803.8,1803.5,0.07702093]
[1680583373338,0.51865146,1803.8,1803.5,0.29880093]
[1680583375189,0.51865146,1803.8,1803.5,0.07702093]
[1680583375754,0.5155613,1803.8,1803.4,0.3265993]
[1680583377352,0.5155613,1803.8,1803.4,0.7701993]
[1680583381756,0.5155613,1803.8,1803.4,1.9317761]
[1680583381962,0.5155613,1803.8,1803.4,1.9377761]
[1680583382162,0.5155613,1803.8,1803.4,2.6267761]
[1680583382961,0.5155613,1803.8,1803.5,0.26267761]
[1680583383193,0.5155613,1803.8,1803.6,0.22177]
[1680583383408,0.5155613,1803.8,1803.5,0.92800761]
[1680583383591,0.5155613,1803.8,1803.5,0.48445761]
[1680583384181,0.5155613,1803.8,1803.5,1.81519761]
[1680583384388,0.5155613,1803.8,1803.6,0.18151976]
[1680583384678,0.5155613,1803.8,1803.6,0.62506976]
[1680583384909,0.5155613,1803.8,1803.6,0.40327976]
[1680583386405,0.5155613,1803.8,1803.6,0.18151976]
[1680583386612,0.5155613,1803.8,1803.6,0.22177]